lending/lending_fUSD_20250121
["ID","MTS","AMOUNT","RATE_DAILY","PERIOD"]
[349909110,1737492651028,-500.0,0.00021095,2]
[349909111,1737492651039,-500.0,0.00021095,2]
[349909112,1737492651050,-500.0,0.00021095,2]
[349909113,1737492651059,-500.0,0.00021095,2]
[349909114,1737492651069,-500.0,0.00021095,2]
[349909115,1737492651079,-500.0,0.00021095,2]
[349909116,1737492651088,-500.0,0.00021095,2]
[349909117,1737492651097,-500.0,0.00021095,2]
[349909118,1737492651107,-500.0,0.00021095,2]
[349909119,1737492651116,-500.0,0.00021095,2]
[349909120,1737492651125,-500.0,0.00021095,2]
[349909121,1737492651135,-500.0,0.00021095,2]
[349909122,1737492651144,-500.0,0.00021095,2]
[349909123,1737492651153,-500.0,0.00021095,2]
[349909124,1737492651165,-500.0,0.00021095,2]
[349909125,1737492651174,-151.0,0.00021095,2]
[349909126,1737492651183,-500.0,0.00021095,2]
[349909127,1737492651192,-500.0,0.00021095,2]
[349909128,1737492651202,-586.938463,0.00021095,2]
[349909129,1737492651211,-500.0,0.00021095,2]
[349909130,1737492651220,-500.0,0.00021095,2]
[349909131,1737492651229,-500.0,0.00021095,2]
[349909132,1737492651238,-180.090104,0.00021095,2]
[349909133,1737492651248,-180.090104,0.00021095,2]
[349909134,1737492651257,-500.0,0.00021095,2]
[349909135,1737492651267,-500.0,0.00021095,2]
[349909136,1737492651276,-151.0,0.00021095,2]
[349909137,1737492651285,-151.0,0.00021095,2]
[349909138,1737492651295,-500.0,0.00021095,2]
[349909139,1737492651305,-215.05,0.00021095,2]
[349909140,1737492651314,-151.0,0.00021095,2]
[349909141,1737492651324,-492.0057667,0.00021095,2]
[349909142,1737492651333,-500.0,0.00021095,2]
[349909143,1737492651343,-500.0,0.00021095,2]
[349909144,1737492651352,-500.0,0.00021095,2]
[349909145,1737492651362,-500.0,0.00021095,2]
[349909146,1737492651371,-500.0,0.00021095,2]
[349909147,1737492651380,-500.0,0.00021095,2]
[349909148,1737492651390,-500.0,0.00021095,2]
[349909149,1737492651399,-614.38,0.00021095,2]
[349909150,1737492651410,-500.0,0.00021095,2]
[349909151,1737492651419,-500.0,0.00021095,2]
[349909152,1737492651428,-500.0,0.00021095,2]
[349909153,1737492651438,-500.0,0.00021095,2]
[349909154,1737492651447,-151.0,0.00021095,2]
[349909155,1737492651457,-500.0,0.00021095,2]
[349909156,1737492651466,-2428.316702,0.00021095,2]
[349909157,1737492651475,-151.0,0.00021095,2]
[349909158,1737492651485,-2428.316702,0.00021095,2]
[349909159,1737492651494,-151.0,0.00021095,2]
[349909160,1737492651503,-286.08,0.00021095,2]
[349909161,1737492651512,-717.346009,0.00021095,2]
[349909162,1737492651522,-717.346009,0.00021095,2]
[349909163,1737492651531,-150.0,0.00021101,2]
[349909164,1737492651540,-150.0,0.00021102,2]
[349909165,1737492651550,-151.0,0.00021103,2]
[349909166,1737492651559,-152.618814,0.00021103,2]
[349909167,1737492651569,-276.61216,0.00021103,2]
[349909168,1737492651579,-276.61216,0.00021103,2]
[349909169,1737492651589,-254.317007,0.00021103,2]
[349909170,1737492651598,-254.317007,0.00021103,2]
[349909171,1737492651607,-150.0,0.00021104,2]
[349909172,1737492651617,-150.0,0.00021108,2]
[349909173,1737492651626,-150.0,0.00021112,2]
[349909174,1737492651635,-150.0,0.00021116,2]
[349909175,1737492651645,-151.0,0.00021122,2]
[349909176,1737492651655,-151.0,0.00021122,2]
[349909177,1737492651665,-151.0,0.00021122,2]
[349909178,1737492651675,-797.807729,0.00021122,2]
[349909179,1737492651684,-797.807729,0.00021122,2]
[349909180,1737492651694,-151.0,0.00021122,2]
[349909181,1737492651709,-151.0,0.00021122,2]
[349909182,1737492651724,-151.0,0.00021122,2]
[349909183,1737492651737,-256.071057,0.00021122,2]
[349909184,1737492651748,-256.071057,0.00021122,2]
[349909185,1737492651763,-150.0,0.00021125,2]
[349909186,1737492651776,-1140.9252624,0.00021127,2]
[349909187,1737492651789,-350.251926,0.00021127,2]
[349909188,1737492651803,-350.251926,0.00021127,2]
[349909189,1737492651818,-296.6093185,0.00021127,2]
[349909190,1737492651831,-157.895692,0.00021127,2]
[349909191,1737492651842,-157.895692,0.00021127,2]
[349909192,1737492651854,-151.0,0.00021127,2]
[349909193,1737492651868,-151.0,0.00021127,2]
[349909194,1737492651881,-272.784676,0.00021127,2]
[349909195,1737492651894,-564.754954,0.00021127,2]
[349909196,1737492651908,-564.754954,0.00021127,2]
[349909197,1737492651922,-2153.54098778,0.00021127,2]
[349909198,1737492651936,-150.0,0.0002113,2]
[349909199,1737492651948,-205.49954183,0.00021131,2]
[349909200,1737492651960,-5202.5428541,0.00021132,2]
[349909201,1737492651974,-14540.3633345,0.00021132,2]
[349909202,1737492651988,-2000.0,0.00021137,2]
[349909203,1737492652000,-200.0,0.00021137,2]
[349909204,1737492652012,-180.9709913,0.00021137,2]
[349909205,1737492652025,-3000.0,0.00021137,2]
[349909206,1737492652039,-150.0,0.00021146,2]
[349909207,1737492652053,-150.0,0.00021152,2]
[349909208,1737492652066,-275.814868,0.00021153,2]
[349909209,1737492652078,-151.0,0.00021153,2]
[349909210,1737492652088,-151.0,0.00021153,2]
[349909211,1737492652100,-150.0,0.00021155,2]
[349909212,1737492652112,-151.0,0.00021156,2]
[349909213,1737492652127,-586.938463,0.00021156,2]
[349909214,1737492652138,-180.090104,0.00021156,2]
[349909215,1737492652148,-180.090104,0.00021156,2]
[349909216,1737492652159,-150.0,0.00021156,2]
[349909217,1737492652171,-151.0,0.00021156,2]
[349909218,1737492652185,-150.0,0.00021166,2]
[349909219,1737492652197,-20919.01803834,0.00021167,2]
[349909220,1737492652208,-717.346009,0.00021168,2]
[349909221,1737492652219,-717.346009,0.00021168,2]
[349909222,1737492652231,-500.0,0.00021173,2]
[349909223,1737492652242,-500.0,0.00021178,2]
[349909224,1737492652253,-298.01,0.00021178,2]
[349909225,1737492652265,-150.99,0.00021178,2]
[349909226,1737492652276,-298.01,0.00021178,2]
[349909227,1737492652287,-298.01,0.00021178,2]
[349909228,1737492652299,-297.81,0.00021178,2]
[349909229,1737492652310,-298.01,0.00021178,2]
[349909230,1737492652322,-298.01,0.00021178,2]
[349909231,1737492652334,-221.53,0.00021178,2]
[349909232,1737492652345,-150.0,0.00021179,2]
[349909233,1737492652356,-150.0,0.00021183,2]
[349909234,1737492652368,-150.0,0.00021184,2]
[349909235,1737492652379,-151.0,0.00021187,2]
[349909236,1737492652390,-151.0,0.00021187,2]
[349909237,1737492652401,-3026.71,0.00021187,2]
[349909238,1737492652413,-500.0,0.00021187,2]
[349909239,1737492652424,-500.0,0.00021187,2]
[349909240,1737492652436,-151.0,0.00021187,2]
[349909241,1737492652447,-500.0,0.00021187,2]
[349909242,1737492652459,-500.0,0.00021187,2]
[349909243,1737492652471,-608.59,0.00021187,2]
[349909244,1737492652482,-1370.0,0.00021187,2]
[349909245,1737492652494,-500.0,0.00021187,2]
[349909246,1737492652506,-2581.83,0.00021187,2]
[349909247,1737492652518,-2428.316702,0.00021187,2]
[349909248,1737492652529,-151.0,0.00021187,2]
[349909249,1737492652542,-2428.316702,0.00021187,2]
[349909250,1737492652553,-151.0,0.00021187,2]
[349909251,1737492652565,-616.98,0.00021187,2]
[349909252,1737492652577,-646.16,0.00021187,2]
[349909253,1737492652590,-500.0,0.00021187,2]
[349909254,1737492652601,-500.0,0.00021187,2]
[349909255,1737492652613,-500.0,0.00021187,2]
[349909256,1737492652624,-500.0,0.00021187,2]
[349909257,1737492652636,-643.67,0.00021187,2]
[349909258,1737492652647,-711.22,0.00021187,2]
[349909259,1737492652659,-500.0,0.00021187,2]
[349909260,1737492652671,-1000.0,0.00021187,2]
[349909261,1737492652684,-500.0,0.00021187,2]
[349909262,1737492652696,-500.0,0.00021187,2]
[349909263,1737492652708,-837.97,0.00021187,2]
[349909264,1737492652719,-668.54,0.00021187,2]
[349909265,1737492652731,-500.0,0.00021187,2]
[349909266,1737492652742,-350.251926,0.00021188,2]
[349909267,1737492652753,-350.251926,0.00021188,2]
[349909268,1737492652764,-157.895692,0.00021188,2]
[349909269,1737492652776,-157.895692,0.00021188,2]
[349909270,1737492652787,-151.0,0.00021188,2]
[349909271,1737492652804,-283.240789,0.00021188,2]
[349909272,1737492652820,-564.754954,0.00021188,2]
[349909273,1737492652835,-564.754954,0.00021188,2]
[349909274,1737492652851,-151.0,0.00021189,2]
[349909275,1737492652863,-151.0,0.00021189,2]
[349909276,1737492652874,-151.0,0.00021189,2]
[349909277,1737492652885,-797.807729,0.00021189,2]
[349909278,1737492652896,-797.807729,0.00021189,2]
[349909279,1737492652907,-256.071057,0.00021189,2]
[349909280,1737492652919,-256.071057,0.00021189,2]
[349909281,1737492652936,-151.0,0.00021189,2]
[349909282,1737492652949,-276.61216,0.00021189,2]
[349909283,1737492652960,-276.61216,0.00021189,2]
[349909284,1737492652972,-254.317007,0.00021189,2]
[349909285,1737492652983,-254.317007,0.00021189,2]
[349909286,1737492652996,-500.0,0.0002119,2]
[349909287,1737492653009,-500.0,0.0002119,2]
[349909288,1737492653022,-681.50978767,0.0002119,2]
[349909289,1737492653033,-151.0,0.00021191,2]
[349909290,1737492653050,-586.938463,0.00021191,2]
[349909291,1737492653061,-180.090104,0.00021191,2]
[349909292,1737492653074,-180.090104,0.00021191,2]
[349909293,1737492653088,-151.0,0.00021191,2]
[349909294,1737492653099,-150.0,0.00021193,2]
[349909295,1737492653111,-150.0,0.00021197,2]
[349909296,1737492653123,-200.0,0.00021198,2]
[349909297,1737492653135,-500.0,0.00021199,2]
[349909298,1737492653147,-500.0,0.00021199,2]
[349909299,1737492653158,-566.0,0.000212,2]
[349909300,1737492653169,-315581.97,0.000212,15]
[349909301,1737492653181,-152.113305,0.000212,2]
[349909302,1737492653192,-151.0,0.000212,2]
[349909303,1737492653210,-151.0,0.000212,2]
[349909304,1737492653221,-797.807729,0.000212,2]
[349909305,1737492653233,-797.807729,0.000212,2]
[349909306,1737492653244,-151.0,0.000212,2]
[349909307,1737492653256,-586.938463,0.000212,2]
[349909308,1737492653267,-180.090104,0.000212,2]
[349909309,1737492653280,-180.090104,0.000212,2]
[349909310,1737492653292,-256.071057,0.000212,2]
[349909311,1737492653304,-256.071057,0.000212,2]
[349909312,1737492653316,-151.682139,0.000212,2]
[349909313,1737492653328,-276.61216,0.000212,2]
[349909314,1737492653339,-276.61216,0.000212,2]
[349909315,1737492653351,-254.317007,0.000212,2]
[349909316,1737492653362,-254.317007,0.000212,2]
[349909317,1737492653374,-150.0,0.000212,2]
[349909318,1737492653388,-231.0,0.000212,2]
[349909319,1737492653397,-350.251926,0.000212,2]
[349909320,1737492653408,-350.251925,0.000212,2]
[349909321,1737492653417,-976.5,0.000212,2]
[349909322,1737492653426,-2428.316702,0.000212,2]
[349909323,1737492653436,-151.0,0.000212,2]
[349909324,1737492653445,-2428.316702,0.000212,2]
[349909325,1737492653454,-151.0,0.000212,2]
[349909326,1737492653464,-157.895692,0.000212,2]
[349909327,1737492653474,-157.895692,0.000212,2]
[349909328,1737492653483,-366.0,0.000212,2]
[349909329,1737492653492,-151.0,0.000212,2]
[349909330,1737492653502,-564.754954,0.000212,2]
[349909331,1737492653513,-564.754954,0.000212,2]
[349909332,1737492653523,-717.346009,0.000212,2]
[349909333,1737492653532,-717.346009,0.000212,2]
[349909334,1737492653779,-408.6149119,0.00021203,2]
[349909335,1737492653805,-500.37763053,0.00021203,2]
[349909336,1737492653818,-268.82700971,0.00021203,2]
[349909337,1737492653827,-500.0,0.00021203,2]
[349909338,1737492653836,-500.48308501,0.00021203,2]
[349909339,1737492653846,-502.41368314,0.00021203,2]
[349909340,1737492653855,-440.93012697,0.00021203,2]
[349909341,1737492653864,-500.0,0.00021203,2]
[349909342,1737492653874,-574.17607077,0.00021203,2]
[349909343,1737492653883,-151.0,0.00021203,2]
[349909344,1737492653892,-151.0,0.00021203,2]
[349909345,1737492653901,-500.0,0.00021203,2]
[349909346,1737492653912,-500.43691386,0.00021203,2]
[349909347,1737492653921,-500.0,0.00021203,2]
[349909348,1737492653931,-500.0,0.00021203,2]
[349909349,1737492653941,-503.96324746,0.00021203,2]
[349909350,1737492653951,-151.0,0.00021203,2]
[349909351,1737492653960,-151.0,0.00021203,2]
[349909352,1737492653970,-151.0,0.00021203,2]
[349909353,1737492653979,-151.0,0.00021203,2]
[349909354,1737492653989,-214.40972222,0.00021205,2]
[349909355,1737492653998,-151.0,0.00021206,2]
[349909356,1737492654008,-151.0,0.00021206,2]
[349909357,1737492654017,-797.807729,0.00021206,2]
[349909358,1737492654026,-797.807729,0.00021206,2]
[349909359,1737492654036,-234.095591,0.00021206,2]
[349909360,1737492654049,-586.938463,0.00021206,2]
[349909361,1737492654058,-180.090104,0.00021206,2]
[349909362,1737492654067,-180.090104,0.00021206,2]
[349909363,1737492654077,-256.071057,0.00021206,2]
[349909364,1737492654087,-256.071057,0.00021206,2]
[349909365,1737492654096,-1269.0,0.00021206,2]
[349909366,1737492654105,-2018.0,0.00021206,2]
[349909367,1737492654115,-150.0,0.00021206,2]
[349909368,1737492654124,-567.0,0.00021206,2]
[349909369,1737492654134,-636.0,0.00021206,2]
[349909370,1737492654143,-1864.0,0.00021206,2]
[349909371,1737492654153,-1261.0,0.00021206,2]
[349909372,1737492654163,-2956.53,0.00021206,2]
[349909373,1737492654173,-781.0,0.00021206,2]
[349909374,1737492654183,-907.0,0.00021206,2]
[349909375,1737492654192,-537.0,0.00021206,2]
[349909376,1737492654203,-3984.0,0.00021206,2]
[349909377,1737492654213,-150.0,0.00021206,2]
[349909378,1737492654222,-3902.0,0.00021206,2]
[349909379,1737492654232,-1174.0,0.00021206,2]
[349909380,1737492654241,-150.0,0.00021206,2]
[349909381,1737492654251,-205.49954183,0.00021208,2]
[349909382,1737492654261,-150.0,0.00021208,2]
[349909383,1737492654270,-150.0,0.00021214,2]
[349909384,1737492654279,-150.0,0.00021219,2]
[349909385,1737492654288,-150.0,0.00021221,2]
[349909386,1737492654297,-150.0,0.00021223,2]
[349909387,1737492654306,-150.0,0.00021223,2]
[349909388,1737492654316,-150.0,0.00021223,2]
[349909389,1737492654326,-150.0,0.00021225,2]
[349909390,1737492654335,-150.0,0.00021225,2]
[349909391,1737492654345,-150.0,0.00021226,2]
[349909392,1737492654354,-150.0,0.00021232,2]
[349909393,1737492654363,-150.0,0.00021233,2]
[349909394,1737492654373,-150.0,0.00021234,2]
[349909395,1737492654382,-150.0,0.00021234,2]
[349909396,1737492654391,-150.0,0.00021239,2]
[349909397,1737492654400,-150.0,0.00021243,2]
[349909398,1737492654410,-276.61216,0.00021261,2]
[349909399,1737492654419,-276.61216,0.00021261,2]
[349909400,1737492654428,-254.317007,0.00021261,2]
[349909401,1737492654438,-254.317007,0.00021261,2]
[349909402,1737492654447,-150.0,0.00021261,2]
[349909403,1737492654457,-150.0,0.00021262,2]
[349909404,1737492654466,-2153.54098778,0.00021264,2]
[349909405,1737492654476,-521.51917785,0.00021264,2]
[349909406,1737492654486,-500.0,0.00021264,2]
[349909407,1737492654495,-151.0,0.00021265,2]
[349909408,1737492654505,-151.0,0.00021265,2]
[349909409,1737492654514,-151.0,0.00021265,2]
[349909410,1737492654525,-151.0,0.00021265,2]
[349909411,1737492654535,-151.0,0.00021265,2]
[349909412,1737492654546,-586.938463,0.00021265,2]
[349909413,1737492654556,-180.090104,0.00021265,2]
[349909414,1737492654566,-180.090104,0.00021265,2]
[349909415,1737492654575,-2428.316702,0.00021265,2]
[349909416,1737492654585,-151.0,0.00021265,2]
[349909417,1737492654594,-2428.316702,0.00021265,2]
[349909418,1737492654604,-218.902552,0.00021265,2]
[349909419,1737492654613,-150.0,0.00021267,2]
[349909420,1737492654623,-500.0,0.00021267,2]
[349909421,1737492654635,-500.0,0.00021267,2]
[349909422,1737492654645,-1048.28,0.00021267,2]
[349909423,1737492654655,-500.0,0.00021267,2]
[349909424,1737492654666,-500.0,0.00021267,2]
[349909425,1737492654676,-500.0,0.00021267,2]
[349909426,1737492654686,-738.49,0.00021267,2]
[349909427,1737492654696,-641.99,0.00021267,2]
[349909428,1737492654705,-616.72,0.00021267,2]
[349909429,1737492654715,-500.0,0.00021267,2]
[349909430,1737492654723,-500.0,0.00021267,2]
[349909431,1737492654733,-872.54,0.00021267,2]
[349909432,1737492654743,-965.81,0.00021267,2]
[349909433,1737492654752,-500.0,0.00021267,2]
[349909434,1737492654762,-500.0,0.00021267,2]
[349909435,1737492654771,-791.91,0.00021267,2]
[349909436,1737492654780,-500.0,0.00021267,2]
[349909437,1737492654790,-943.58,0.00021267,2]
[349909438,1737492654800,-500.0,0.00021267,2]
[349909439,1737492654816,-739.18,0.00021267,2]
[349909440,1737492654827,-573.77,0.00021267,2]
[349909441,1737492654836,-207.0,0.0002127,2]
[349909442,1737492654845,-500.0,0.00021273,2]
[349909443,1737492654856,-500.0,0.00021273,2]
[349909444,1737492654867,-500.0,0.00021273,2]
[349909445,1737492654880,-500.57470895,0.00021273,2]
[349909446,1737492654895,-500.0,0.00021273,2]
[349909447,1737492654905,-500.0,0.00021273,2]
[349909448,1737492654930,-322.42025066,0.00021277,2]
[349909449,1737492654943,-150.0,0.0002128,2]
[349909450,1737492654952,-150.0,0.00021282,2]
[349909451,1737492654962,-180.362628,0.00021283,2]
[349909452,1737492654972,-155.397585,0.00021283,2]
[349909453,1737492654981,-151.0,0.00021283,2]
[349909454,1737492654991,-151.0,0.00021283,2]
[349909455,1737492655001,-157.744047,0.00021283,2]
[349909456,1737492655010,-151.0,0.00021283,2]
[349909457,1737492655019,-151.0,0.00021283,2]
[349909458,1737492655029,-500.0,0.00021283,2]
[349909459,1737492655040,-500.0,0.00021283,2]
[349909460,1737492655053,-500.0,0.00021283,2]
[349909461,1737492655062,-500.0,0.00021283,2]
[349909462,1737492655071,-500.0,0.00021283,2]
[349909463,1737492655080,-500.0,0.00021283,2]
[349909464,1737492655090,-500.0,0.00021283,2]
[349909465,1737492655099,-500.0,0.00021283,2]
[349909466,1737492655108,-500.0,0.00021283,2]
[349909467,1737492655118,-500.0,0.00021283,2]
[349909468,1737492655127,-500.0,0.00021283,2]
[349909469,1737492655137,-500.0,0.00021283,2]
[349909470,1737492655146,-500.0,0.00021283,2]
[349909471,1737492655155,-500.0,0.00021283,2]
[349909472,1737492655166,-500.0,0.00021283,2]
[349909473,1737492655175,-500.0,0.00021283,2]
[349909474,1737492655184,-500.0,0.00021283,2]
[349909475,1737492655194,-500.0,0.00021283,2]
[349909476,1737492655204,-500.0,0.00021283,2]
[349909477,1737492655214,-500.0,0.00021283,2]
[349909478,1737492655223,-500.0,0.00021283,2]
[349909479,1737492655233,-500.0,0.00021283,2]
[349909480,1737492655242,-500.0,0.00021283,2]
[349909481,1737492655251,-500.0,0.00021283,2]
[349909482,1737492655261,-500.0,0.00021283,2]
[349909483,1737492655271,-500.0,0.00021283,2]
[349909484,1737492655280,-500.0,0.00021283,2]
[349909485,1737492655289,-500.0,0.00021283,2]
[349909486,1737492655299,-500.0,0.00021283,2]
[349909487,1737492655308,-500.0,0.00021283,2]
[349909488,1737492655317,-500.0,0.00021283,2]
[349909489,1737492655327,-500.0,0.00021283,2]
[349909490,1737492655336,-500.0,0.00021283,2]
[349909491,1737492655346,-500.0,0.00021283,2]
[349909492,1737492655356,-500.0,0.00021283,2]
[349909493,1737492655365,-500.0,0.00021283,2]
[349909494,1737492655375,-500.0,0.00021283,2]
[349909495,1737492655384,-500.0,0.00021283,2]
[349909496,1737492655393,-500.0,0.00021283,2]
[349909497,1737492655402,-500.0,0.00021283,2]
[349909498,1737492655415,-500.0,0.00021283,2]
[349909499,1737492655424,-500.0,0.00021283,2]
[349909500,1737492655433,-500.0,0.00021283,2]
[349909501,1737492655443,-500.0,0.00021283,2]
[349909502,1737492655452,-500.0,0.00021283,2]
[349909503,1737492655462,-500.0,0.00021283,2]
[349909504,1737492655472,-500.0,0.00021283,2]
[349909505,1737492655482,-500.0,0.00021283,2]
[349909506,1737492655491,-797.807729,0.00021283,2]
[349909507,1737492655501,-797.807729,0.00021283,2]
[349909508,1737492655511,-586.938463,0.00021283,2]
[349909509,1737492655520,-180.090104,0.00021283,2]
[349909510,1737492655531,-180.090104,0.00021283,2]
[349909511,1737492655544,-256.071057,0.00021283,2]
[349909512,1737492655554,-256.071057,0.00021283,2]
[349909513,1737492655563,-276.61216,0.00021283,2]
[349909514,1737492655573,-276.61216,0.00021283,2]
[349909515,1737492655582,-254.317007,0.00021283,2]
[349909516,1737492655592,-254.317007,0.00021283,2]
[349909517,1737492655601,-150.0,0.00021283,2]
[349909518,1737492655611,-2428.316702,0.00021283,2]
[349909519,1737492655621,-151.0,0.00021283,2]
[349909520,1737492655630,-2428.3167,0.00021283,2]
[349909521,1737492655639,-157.895692,0.00021283,2]
[349909522,1737492655649,-157.895685,0.00021283,2]
[349909523,1737492655660,-151.0,0.00021283,2]
[349909524,1737492655672,-564.754954,0.00021283,2]
[349909525,1737492655681,-564.754962,0.00021283,2]
[349909526,1737492655691,-717.346009,0.00021283,2]
[349909527,1737492655700,-717.346003,0.00021283,2]
[349909528,1737492655711,-150.0,0.00021284,2]
[349909529,1737492655721,-205.49954183,0.00021285,2]
[349909530,1737492655730,-999.0,0.00021298,2]
[349909531,1737492655740,-500.0,0.00021298,2]
[349909532,1737492655753,-150.0,0.00021299,2]
[349909533,1737492655762,-150.0,0.00021299,2]
[349909534,1737492655772,-150.0,0.00021299,2]
[349909535,1737492655781,-150.0,0.00021299,2]
[349909536,1737492655791,-150.0,0.00021299,2]
[349909537,1737492655800,-112061.87880368,0.00021299,2]
[349909538,1737492655809,-11286.76808536,0.00021299,2]
[349909539,1737492655819,-734.09977589,0.00021299,2]
[349909540,1737492655828,-5492.38413558,0.00021299,2]
[349909541,1737492655837,-8012.99893294,0.00021299,2]
[349909542,1737492655847,-151.0,0.00021299,2]
[349909543,1737492655856,-151.0,0.00021299,2]
[349909544,1737492655865,-151.0,0.00021299,2]
[349909545,1737492655875,-151.0,0.00021299,2]
[349909546,1737492655884,-797.807729,0.00021299,2]
[349909547,1737492655894,-797.807729,0.00021299,2]
[349909548,1737492655905,-586.938459,0.00021299,2]
[349909549,1737492655918,-180.090104,0.00021299,2]
[349909550,1737492655927,-180.090103,0.00021299,2]
[349909551,1737492655937,-256.071057,0.00021299,2]
[349909552,1737492655946,-256.071057,0.00021299,2]
[349909553,1737492655956,-276.61216,0.00021299,2]
[349909554,1737492655965,-276.612156,0.00021299,2]
[349909555,1737492655975,-254.317007,0.00021299,2]
[349909556,1737492655985,-254.317012,0.00021299,2]
[349909557,1737492655994,-275.62,0.00021299,2]
[349909558,1737492656004,-300.0,0.00021299,2]
[349909559,1737492656013,-666.0,0.00021299,2]
[349909560,1737492656022,-158121.79281552,0.000213,15]
[349909561,1737492656032,-3540.714848,0.000213,2]
[349909562,1737492656046,-2000.0,0.000213,2]
[349909563,1737492656055,-149412.24838522,0.000213,2]
[349909564,1737492656064,-8562.78210743,0.000213,2]
[349909565,1737492656074,-168.917481,0.000213,2]
[349909566,1737492656083,-151.0,0.000213,2]
[349909567,1737492656092,-151.0,0.000213,2]
[349909568,1737492656102,-151.0,0.000213,2]
[349909569,1737492656111,-151.0,0.000213,2]
[349909570,1737492656121,-797.807729,0.000213,2]
[349909571,1737492656130,-797.807729,0.000213,2]
[349909572,1737492656139,-797.807729,0.000213,2]
[349909573,1737492656148,-797.807729,0.000213,2]
[349909574,1737492656157,-256.071057,0.000213,2]
[349909575,1737492656168,-256.071057,0.000213,2]
[349909576,1737492656177,-256.071057,0.000213,2]
[349909577,1737492656186,-256.071057,0.000213,2]
[349909578,1737492656196,-1258.3499,0.000213,2]
[349909579,1737492656207,-500.0,0.000213,2]
[349909580,1737492656216,-2746.6212,0.000213,2]
[349909581,1737492656225,-254.25547344,0.00021306,2]
[349909582,1737492656235,-2000.0,0.0002131,2]
[349909583,1737492656245,-214.40972222,0.00021315,2]
[349909584,1737492656254,-3693.354456,0.0002132,2]
[349909585,1737492656264,-205.49954183,0.00021362,2]
[349909586,1737492656274,-500.0,0.00021367,2]
[349909587,1737492656283,-963.47,0.00021367,2]
[349909588,1737492656293,-751.13,0.00021367,2]
[349909589,1737492656301,-1171.75,0.00021367,2]
[349909590,1737492656310,-879.39,0.00021367,2]
[349909591,1737492656320,-500.0,0.00021367,2]
[349909592,1737492656329,-665.74,0.00021367,2]
[349909593,1737492656339,-974.79,0.00021367,2]
[349909594,1737492656349,-1923.57,0.00021367,2]
[349909595,1737492656358,-1551.07,0.00021367,2]
[349909596,1737492656367,-2387.88,0.00021367,2]
[349909597,1737492656377,-500.0,0.00021367,2]
[349909598,1737492656386,-500.0,0.00021367,2]
[349909599,1737492656396,-759.82,0.00021367,2]
[349909600,1737492656406,-650.86,0.00021367,2]
[349909602,1737492656416,-500.0,0.00021368,2]
[349909603,1737492656426,-500.0,0.00021368,2]
[349909604,1737492656436,-500.0,0.00021368,2]
[349909605,1737492656446,-612.0,0.00021368,2]
[349909606,1737492656456,-649.2922451,0.00021368,2]
[349909607,1737492656466,-461.17885643,0.00021368,2]
[349909608,1737492656475,-500.0,0.00021368,2]
[349909609,1737492656485,-500.0,0.00021368,2]
[349909610,1737492656494,-500.0,0.00021368,2]